bitfinex/quotes_ETHUSD_20250406
["timestamp","ask_amount","ask_price","bid_price","bid_amount"]
[1743946863147,8.71274099,1764.0,1763.8,1.78309543]
[1743946864001,8.58883063,1764.0,1763.8,1.78309543]
[1743946864237,0.12331059,1763.9,1763.8,1.78309543]
[1743946864447,0.12331059,1763.9,1763.8,5.75179543]
[1743946864735,0.12331059,1763.9,1763.8,6.72384897]
[1743946865599,8.58883063,1764.0,1763.9,4.51847]
[1743946865835,8.58883063,1764.0,1763.9,3.96847]
[1743946866443,8.58883063,1764.0,1763.8,1.78309543]
[1743946866608,8.58883063,1764.0,1763.7,3.96884]
[1743946866805,8.58883063,1764.0,1763.6,1.78309543]
[1743946867839,9.61139369,1764.0,1763.3,1.78309543]
[1743946868043,9.68226155,1764.0,1763.3,5.75290543]
[1743946868239,3.12160909,1763.9,1763.1,3.97023]
[1743946868437,0.38303793,1763.8,1763.2,3.96989]
[1743946868853,0.12046969,1763.7,1763.3,3.96969]
[1743946869007,0.12046969,1763.7,1763.6,3.96915]
[1743946869212,14.37061776,1764.0,1763.7,3.96878]
[1743946869517,14.37061776,1764.0,1763.9,3.96847]
[1743946869733,14.37061776,1764.0,1763.8,3.73722245]
[1743946870035,14.37061776,1764.0,1763.9,3.96847]
[1743946871252,14.37061776,1764.0,1763.9,11.84347]
[1743946872134,8.58883063,1764.0,1763.9,11.74347]
[1743946872338,8.58883063,1764.0,1763.9,13.29153925]
[1743946872848,8.58883063,1764.0,1763.9,12.74153925]
[1743946873021,8.58883063,1764.0,1763.9,11.19347]
[1743946873220,8.58883063,1764.0,1763.9,7.325]
[1743946873533,8.58883063,1764.0,1763.8,3.96867]
[1743946873735,8.58883063,1764.0,1763.7,0.396878]
[1743946873953,8.58883063,1764.0,1763.7,3.9687]
[1743946874115,8.58883063,1764.0,1763.8,3.96869]
[1743946874515,8.58883063,1764.0,1763.9,3.96847]
[1743946876812,8.58883063,1764.0,1763.8,5.75178543]
[1743946877013,8.58883063,1764.0,1763.8,1.78309543]
[1743946877721,8.58883063,1764.0,1763.9,6.30156543]
[1743946877921,7.42938338,1764.0,1763.9,8.90708197]
[1743946880163,1.59534759,1764.7,1764.0,3.96816]
[1743946880452,0.12593397,1764.6,1764.0,3.96816]
[1743946880761,0.12593397,1764.6,1763.9,8.98509543]
[1743946881061,1.5245,1764.7,1764.0,3.96811]
[1743946881266,1.5245,1764.7,1764.0,7.93622]
[1743946881560,0.12611572,1764.6,1764.0,7.93622]
[1743946881762,1.5245,1764.7,1764.1,3.968]
[1743946881956,0.19695997,1764.6,1763.9,10.38315363]
[1743946882262,0.07084425,1764.6,1763.9,12.95354543]
[1743946882589,7.23784425,1764.6,1763.9,1.78309543]
[1743946882952,7.167,1764.6,1763.9,1.78309543]
[1743946883291,0.1963685,1764.5,1763.9,1.78309543]
[1743946883678,0.07084284,1764.5,1763.9,1.78309543]
[1743946884190,0.12347738,1764.4,1763.9,1.78309543]
[1743946884363,0.79462712,1764.5,1763.9,1.78309543]
[1743946884548,7.23784926,1764.6,1764.0,3.96821]
[1743946884750,4.9980641,1764.5,1763.9,5.75156543]
[1743946885180,4.92722243,1764.5,1764.0,3.96814]
[1743946885366,4.92722243,1764.5,1764.1,3.96802]
[1743946885576,4.92722243,1764.5,1764.2,3.96772]
[1743946885889,4.92722243,1764.5,1764.2,4.364572]
[1743946886052,4.92722243,1764.5,1764.3,3.96747]
[1743946886246,4.92722243,1764.5,1764.3,3.96744]
[1743946886867,4.92722243,1764.5,1764.2,4.364562]
[1743946887184,4.8141831,1764.5,1764.3,3.96754]
[1743946887389,4.8141831,1764.5,1764.4,3.96735]
[1743946887887,4.8141831,1764.5,1764.3,6.58378163]
[1743946888197,4.8141831,1764.5,1764.3,10.55125163]
[1743946888399,4.8141831,1764.5,1764.4,3.96735]
[1743946888755,1.5245,1764.7,1764.4,7.9347]
[1743946888956,0.05,1764.9,1764.5,1.78309543]
[1743946889185,0.05,1764.9,1764.7,3.9665]
[1743946889367,0.15578604,1764.9,1764.5,1.78309543]
[1743946889571,0.15578604,1764.9,1764.5,5.75021543]
[1743946889767,0.15578604,1764.9,1764.6,3.9669]
[1743946889972,0.15578604,1764.9,1764.7,0.39669]
[1743946890257,0.15578604,1764.9,1764.7,4.36332]
[1743946890685,0.15578604,1764.9,1764.7,0.39669]
[1743946890883,0.15578604,1764.9,1764.6,3.96689]
[1743946891571,0.15578604,1764.9,1764.5,5.75021543]
[1743946891766,0.15578604,1764.9,1764.7,3.96665]
[1743946892179,0.15578604,1764.9,1764.7,3.96652]
[1743946892380,0.15578604,1764.9,1764.6,3.96689]
[1743946892582,0.15578604,1764.9,1764.7,3.96665]
[1743946892976,8.67236469,1764.8,1764.6,4.99345054]
[1743946893498,8.67236469,1764.8,1764.7,3.96667]
[1743946893695,8.67236469,1764.8,1764.7,4.51667]
[1743946893995,8.67236469,1764.8,1764.7,5.46768205]
[1743946895098,8.67236469,1764.8,1764.7,7.25077748]
[1743946896105,8.67236469,1764.8,1764.7,11.77407748]
[1743946897412,6.88926926,1764.8,1764.7,9.99098205]
[1743946897985,4.83e-06,1764.8,1764.7,9.99098205]
[1743946898186,1.5147,1765.8,1765.5,3.96481]
[1743946898394,1.5147,1765.8,1765.5,10.12481]
[1743946898590,1.5147,1765.8,1765.5,14.08957]
[1743946898793,1.5147,1765.8,1765.5,14.08948]
[1743946899003,1.5147,1765.8,1765.6,3.96448]
[1743946899516,1.5147,1765.8,1765.5,6.16]
[1743946899808,1.5147,1765.8,1765.5,10.12485]
[1743946900497,1.5147,1765.8,1765.5,6.16]
[1743946902087,1.5147,1765.8,1765.5,10.12472]
[1743946902288,1.5147,1765.8,1765.5,11.137192]
[1743946902509,1.5147,1766.1,1765.5,15.101912]
[1743946902695,1.5147,1766.1,1765.5,11.137192]
[1743946903213,1.5147,1766.1,1765.5,6.16]
[1743946906097,1.5147,1766.1,1765.5,10.12486]
[1743946906807,1.5147,1766.1,1765.5,6.16]
[1743946907987,0.10052949,1766.0,1765.5,6.16]
[1743946908586,1.73498858,1765.8,1764.9,13.061]
[1743946908793,4.73498858,1765.8,1765.0,3.96592]
[1743946909022,0.47349886,1765.7,1765.0,5.668612]
[1743946909205,4.73498858,1765.8,1765.0,1.702692]
[1743946909409,4.6642,1765.8,1765.2,7.93089]
[1743946909615,8.49321849,1765.8,1765.3,3.96531]
[1743946909794,5.49321849,1765.8,1765.4,3.96499]
[1743946909996,3.82901849,1765.8,1765.5,3.96478]
[1743946910316,3.82901849,1765.8,1765.6,0.396478]
[1743946910926,3.82901849,1765.8,1765.4,14.81806]
[1743946911316,3.82901849,1765.8,1765.4,10.85296]
[1743946912036,3.82901849,1765.8,1765.4,6.888]
[1743946912404,3.82901849,1765.8,1765.4,10.85309]
[1743946912582,3.82901849,1765.8,1765.5,3.96482]
[1743946912788,3.82901849,1765.8,1765.6,0.396482]
[1743946913035,3.82901849,1765.8,1765.6,4.361112]
[1743946913194,6.69993965,1765.7,1765.6,4.911022]
[1743946913702,6.69993965,1765.7,1765.6,11.071022]
[1743946914287,0.05,1765.9,1765.6,14.071022]
[1743946914503,0.05,1765.9,1765.8,4.5142]
[1743946914682,0.05,1765.9,1765.8,12.22]
[1743946915940,0.02974333,1766.0,1765.9,7.51398]
[1743946916084,0.02974333,1766.0,1765.9,14.36998]
[1743946916289,0.02974333,1766.0,1765.9,23.133978]
[1743946916547,3.33e-06,1766.0,1765.9,23.133978]
[1743946916695,0.03346925,1766.5,1766.4,3.96286]
[1743946916891,0.03346925,1766.5,1766.4,17.52585667]
[1743946917120,0.03346925,1766.5,1766.4,16.72585667]
[1743946917339,9.25e-06,1766.5,1766.4,21.94932334]
[1743946918535,9.25e-06,1766.5,1766.4,12.09632334]
[1743946918697,9.25e-06,1766.5,1766.4,17.50785667]
[1743946919019,9.25e-06,1766.5,1766.4,12.99499667]
[1743946919229,9.25e-06,1766.5,1766.4,6.15999667]
[1743946919403,9.25e-06,1766.5,1766.2,6.15999667]
[1743946919593,9.25e-06,1766.5,1766.2,10.12329667]
[1743946919795,9.25e-06,1766.5,1766.2,15.53749863]
[1743946919994,9.25e-06,1766.5,1766.3,3.96306]
[1743946920219,9.25e-06,1766.5,1766.4,3.96286]
[1743946920414,9.25e-06,1766.5,1766.2,6.15999667]
[1743946921027,9.25e-06,1766.5,1766.1,40.774]
[1743946921232,9.25e-06,1766.5,1766.0,10.12373667]
[1743946921621,9.25e-06,1766.5,1766.0,14.08733667]
[1743946921847,9.25e-06,1766.5,1766.1,3.96352]
[1743946922045,1.5081,1766.4,1765.8,6.15999667]
[1743946922251,1.5081,1766.4,1766.0,3.96365]
[1743946922623,1.5081,1766.4,1765.9,3.96397]
[1743946922822,1.5081,1766.4,1765.8,10.97520467]
[1743946923027,1.5081,1766.4,1765.9,5.06128047]
[1743946923354,1.5081,1766.4,1765.9,1.09752047]
[1743946923557,1.5081,1766.4,1765.8,10.12407667]
[1743946923713,1.5081,1766.4,1765.9,3.96398]
[1743946923914,0.07076803,1766.3,1765.8,6.15999667]
[1743946924855,3.07076803,1766.3,1765.5,10.12485667]
[1743946925020,3.07076803,1766.3,1765.5,15.21354234]
[1743946925215,3.07076803,1766.3,1765.6,3.9646]
[1743946925961,3.07076803,1766.3,1765.8,3.96411]
[1743946926262,3.07076803,1766.3,1765.7,3.96442]
[1743946926429,5.77612715,1766.2,1765.7,4.757326]
[1743946926963,5.77612715,1766.2,1766.0,3.96371]
[1743946927126,5.77612715,1766.2,1766.1,10.12352667]
[1743946928072,5.77612715,1766.2,1766.1,6.15999667]
[1743946928431,7.42242715,1766.2,1765.8,6.15999667]
[1743946928675,8.35485653,1766.2,1765.8,6.15999667]
[1743946928889,7.42242715,1766.2,1765.8,10.12416667]
[1743946929675,7.42242715,1766.2,1765.4,44.72706]
[1743946929676,1.6463,1766.2,1765.3,6.15999667]
[1743946929863,1.71477588,1766.1,1765.3,6.15999667]
[1743946930043,1.644,1765.8,1765.3,6.15999667]
[1743946930249,1.71479672,1765.8,1765.4,3.96495]
[1743946930448,1.644,1765.8,1765.6,3.96457]
[1743946930758,1.644,1765.8,1765.5,3.96487]
[1743946930759,1.644,1765.8,1765.5,3.96485]
[1743946930934,1.644,1765.8,1765.5,4.97733467]
[1743946931336,1.644,1766.1,1765.6,3.9645]
[1743946932196,1.644,1766.1,1765.6,7.92899]
[1743946932481,1.644,1766.1,1765.7,3.96441]
[1743946932640,1.644,1766.1,1765.6,3.96449]
[1743946932840,1.644,1766.1,1765.7,0.396449]
[1743946933041,1.644,1766.1,1765.7,4.360869]
[1743946933389,1.644,1766.1,1765.8,3.9641]
[1743946933876,1.637,1766.4,1765.9,3.96383]
[1743946934038,1.637,1766.4,1765.9,4.756623]
[1743946934437,1.637,1766.4,1765.9,0.792793]
[1743946934944,0.07077322,1766.3,1765.6,6.15999667]
[1743946935146,1.637,1766.2,1765.6,6.15999667]
[1743946935374,0.0707842,1766.1,1765.6,6.15999667]
[1743946937191,1.637,1766.0,1765.4,6.15999667]
[1743946937488,0.07079222,1765.9,1765.1,6.692]
[1743946937687,0.07079222,1765.9,1765.2,0.6692]
[1743946938472,0.07079222,1765.9,1765.3,3.96523]
[1743946938645,0.07079222,1765.9,1765.2,4.63473]
[1743946938842,0.07079222,1765.9,1765.2,0.6692]
[1743946939377,0.07079222,1765.9,1765.2,4.63472]
[1743946939577,0.07079222,1765.9,1765.3,0.463472]
[1743946940099,0.07079222,1765.9,1765.2,0.6692]
[1743946941213,3.0,1765.7,1765.2,0.6692]
[1743946941975,3.0,1765.5,1764.7,6.15999667]
[1743946942176,1.637,1765.3,1764.7,6.15999667]
[1743946942378,0.07082038,1765.2,1764.7,6.15999667]
[1743946943006,1.637,1765.3,1764.7,6.15999667]
[1743946943201,0.07082041,1765.2,1764.7,6.15999667]
[1743946943402,0.07082041,1765.2,1764.7,6.77599634]
[1743946944923,1.637,1765.3,1764.7,6.77599634]
[1743946945301,0.07081325,1765.2,1764.7,6.15999667]
[1743946945828,1.6352,1764.9,1764.3,6.15999667]
[1743946946118,0.07083453,1764.8,1764.3,6.15999667]
[1743946946483,0.07083453,1764.8,1764.1,0.05]
[1743946946683,0.07083453,1764.8,1764.1,5.14522467]
[1743946947795,0.07083453,1764.8,1764.1,9.11322467]
[1743946947995,0.07083453,1764.8,1764.1,5.14522467]
[1743946948401,1.6352,1764.7,1764.1,5.14522467]
[1743946948606,1.70604386,1764.7,1764.1,5.14522467]
[1743946948896,1.70604386,1764.7,1764.2,0.51452247]
[1743946949111,3.0,1764.5,1764.1,0.05]
[1743946949340,1.66265237,1764.4,1764.1,0.05]
[1743946949986,1.5918,1764.4,1764.1,4.01793]
[1743946950187,1.5918,1764.4,1764.2,0.401793]
[1743946950385,1.5918,1764.4,1764.1,0.05]
[1743946951185,6.71384487,1764.6,1764.1,7.98581]
[1743946951385,6.71384487,1764.6,1764.1,4.0179]
[1743946951610,6.71384487,1764.6,1764.2,3.96779]
[1743946952010,6.71384487,1764.6,1764.1,7.98582]
[1743946952186,13.01490986,1764.6,1764.2,4.766272]
[1743946952381,6.30106499,1764.6,1764.2,0.798582]
[1743946952582,6.30106499,1764.6,1764.1,0.05]
[1743946953000,0.07084487,1764.5,1764.1,0.05]
[1743946953191,3.07084487,1764.5,1764.1,0.05]
[1743946953393,1.5918,1764.4,1764.1,0.05]
[1743946954512,0.07085231,1764.3,1764.1,0.05]
[1743946954715,1.6626575,1764.4,1764.1,0.05]
[1743946955332,1.5918,1764.4,1764.1,0.05]
[1743946955502,5.78601575,1764.3,1764.1,0.05]
[1743946956094,5.78601575,1764.3,1764.1,4.01801]
[1743946956592,5.78601575,1764.3,1764.1,0.05]
[1743946958443,5.85686926,1764.3,1764.1,0.05]
[1743946959331,3.07085351,1764.3,1764.1,0.05]
[1743946960010,3.0,1764.3,1764.1,0.05]
[1743946960331,7.37781575,1764.4,1764.1,0.451817]
[1743946960534,7.37781575,1764.4,1764.1,0.05]
[1743946961796,7.37781575,1764.4,1764.1,4.01788]
[1743946962023,5.78601575,1764.4,1764.1,0.05]
[1743946964123,5.78601575,1764.4,1764.2,3.96779]
[1743946964305,5.78601575,1764.4,1764.3,0.396779]
[1743946965017,5.78601575,1764.4,1764.1,0.05]
[1743946967133,0.07084073,1764.6,1764.1,0.05]
[1743946967134,12.11317272,1764.6,1764.1,0.05]
[1743946967341,12.04233199,1764.6,1764.1,0.05]
[1743946967511,12.04233199,1764.6,1764.1,0.45181]
[1743946967898,12.04233199,1764.6,1764.1,4.41978]
[1743946968093,12.04233199,1764.6,1764.1,4.41968]
[1743946968325,12.04233199,1764.6,1764.2,3.96759]
[1743946968695,12.04233199,1764.6,1764.1,4.41979]
[1743946968896,12.04233199,1764.6,1764.1,4.41982]
[1743946969114,12.04233199,1764.6,1764.2,0.441982]
[1743946970323,12.04233199,1764.5,1764.1,0.05]
[1743946971199,12.04233199,1764.5,1764.1,4.01796]
[1743946971401,12.04233199,1764.5,1764.2,3.96759]
[1743946971729,12.04233199,1764.5,1764.3,3.96748]
[1743946972098,12.04233199,1764.5,1764.2,3.9678]
[1743946972341,12.04233199,1764.5,1764.1,0.05]
[1743946973021,13.24656519,1764.5,1764.1,0.05]
[1743946973209,3.07084763,1764.4,1764.1,0.05]
[1743946974541,1.5698,1764.3,1764.1,0.05]
[1743946974720,0.07086406,1764.2,1764.1,0.05]
[1743946979307,6.40740294,1764.2,1764.1,0.05]
[1743946979547,13.61212323,1764.2,1764.1,0.05]
[1743946979838,12.74353888,1764.2,1764.1,0.05]
[1743946980348,6.33653888,1764.2,1764.1,0.05]
[1743946981648,6.33653888,1764.2,1764.1,10.17801667]
[1743946982340,6.33653888,1764.2,1764.1,6.20999667]
[1743946983341,6.33653888,1764.2,1764.1,0.05]
[1743946986319,8.53999277,1764.2,1764.1,0.05]
[1743946987663,7.90633888,1764.2,1764.1,0.05]
[1743946987832,6.33653888,1764.2,1764.1,0.05]
[1743946988373,6.33653888,1764.2,1764.1,4.01802]
[1743946988534,6.33653888,1764.2,1764.1,10.17801667]
[1743946990144,6.33653888,1764.2,1764.1,6.20999667]
[1743946990561,6.33653888,1764.2,1764.1,10.17801667]
[1743946990728,6.33653888,1764.2,1764.1,6.20999667]
[1743946991743,6.33653888,1764.2,1764.1,7.22780734]
[1743946992386,6.33653888,1764.2,1764.1,11.19582734]
[1743946992561,6.33653888,1764.2,1764.1,7.22780734]
[1743946992948,6.33653888,1764.2,1764.1,11.19582734]
[1743946993948,6.33653888,1764.2,1764.1,7.22780734]
[1743946994150,6.33653888,1764.2,1764.1,6.20999667]
[1743946996097,6.33653888,1764.2,1764.1,10.17801667]
[1743946997387,6.33653888,1764.2,1764.1,6.20999667]
[1743946997548,6.33653888,1764.2,1764.1,10.17801667]
[1743946998492,6.33653888,1764.2,1764.1,6.20999667]
[1743946999802,6.33653888,1764.2,1764.1,6.20891396]
[1743947002307,6.33653888,1764.2,1764.1,10.17693396]
[1743947002460,6.33653888,1764.2,1764.1,6.20891396]
[1743947004098,6.33653888,1764.2,1764.1,10.79782536]
[1743947006724,6.33653888,1764.2,1764.1,6.20891396]
[1743947009140,6.33653888,1764.2,1764.1,10.17693396]
[1743947009536,6.33653888,1764.2,1764.1,6.20891396]
[1743947010039,6.33653888,1764.2,1764.1,10.17693396]
[1743947012234,6.33653888,1764.2,1764.1,6.20891396]
[1743947012435,6.33653888,1764.2,1764.1,11.19464736]
[1743947015975,0.17654221,1764.2,1764.1,13.28025069]
[1743947016276,0.17654221,1764.2,1764.1,16.28025069]
[1743947016573,0.17654221,1764.2,1764.1,10.12925069]
[1743947016742,0.17654221,1764.2,1764.1,1.06663069]
[1743947017976,0.17654221,1764.2,1764.1,6.20891729]
[1743947025002,1.73404693,1764.6,1764.1,6.20891729]
[1743947025707,1.73404693,1764.6,1764.1,0.04891729]
[1743947025886,1.6031,1764.4,1764.1,0.04891729]
[1743947026098,4.6031,1764.2,1764.1,0.04891729]
[1743947029293,4.67397056,1764.2,1764.1,0.04891729]
[1743947030926,10.74297056,1764.2,1764.1,0.04891729]
[1743947032026,14.2794343,1764.2,1764.1,0.04891729]
[1743947032196,14.20856374,1764.2,1764.1,0.04891729]
[1743947032397,15.62942011,1764.2,1764.1,0.04891729]
[1743947032822,5.13956374,1764.2,1764.1,0.04891729]
[1743947037619,3.53646374,1764.2,1764.1,0.04891729]
[1743947041755,3.53646374,1764.2,1764.1,4.01693729]
[1743947042615,3.53646374,1764.2,1764.1,10.17693729]
[1743947043124,3.53646374,1764.2,1764.1,11.69303729]
[1743947043427,3.53646374,1764.2,1764.1,13.25915002]
[1743947043632,3.53646374,1764.2,1764.1,9.29113002]
[1743947044246,3.53646374,1764.2,1764.1,13.25915002]
[1743947044445,3.53646374,1764.2,1764.1,9.29113002]
[1743947044637,3.53646374,1764.2,1764.1,6.20891729]
[1743947047762,3.53646374,1764.2,1764.1,0.04891729]
[1743947048325,3.53646374,1764.2,1764.1,4.01693729]
[1743947048526,3.53646374,1764.2,1764.1,5.53303729]
[1743947048823,6.05384957,1764.6,1764.1,5.53303729]
[1743947049048,6.05384957,1764.6,1764.2,0.55330373]
[1743947049246,6.05384957,1764.6,1764.1,1.56501729]
[1743947049449,6.05384957,1764.6,1764.1,0.04891729]
[1743947050053,3.0,1764.5,1764.1,0.04891729]
[1743947050252,0.07085177,1764.4,1764.1,0.04891729]
[1743947051656,3.07085172,1764.5,1764.1,0.04891729]
[1743947051876,3.07085172,1764.5,1764.1,1.06662402]
[1743947053394,3.07085172,1764.5,1764.1,0.04891729]
[1743947054493,3.07085172,1764.5,1764.1,4.01679729]
[1743947054794,3.0708518,1764.6,1764.1,4.01679729]
[1743947055759,3.0708518,1764.6,1764.2,3.96776]
[1743947056004,3.0708518,1764.6,1764.2,0.79845573]
[1743947056980,3.0708518,1764.6,1764.1,0.04891729]
[1743947057815,3.0708518,1764.6,1764.1,4.01679729]
[1743947058289,0.0708518,1764.6,1764.1,7.98470729]
[1743947058623,3.0708518,1764.6,1764.1,4.01679729]
[1743947059318,3.0708518,1764.6,1764.1,10.17679729]
[1743947059482,3.0708518,1764.6,1764.2,1.01767973]
[1743947060424,3.0708518,1764.6,1764.1,6.20891729]
[1743947061711,1.5229,1764.9,1764.3,5.54208]
[1743947061921,1.5229,1764.9,1764.3,11.70208]
[1743947062239,3.0708363,1764.8,1764.3,11.70208]
[1743947062423,3.0708363,1764.8,1764.4,1.170208]
[1743947062591,3.0708363,1764.8,1764.3,6.16]
[1743947065879,1.5229,1764.7,1764.3,6.16]
[1743947066026,1.5229,1764.5,1764.3,6.16]
[1743947066231,3.07085269,1764.4,1764.1,0.04891729]
[1743947066472,4.11922796,1764.4,1764.1,0.04891729]
[1743947066999,1.5229,1764.3,1764.1,0.04891729]
[1743947067167,0.07086477,1764.2,1764.1,0.04891729]
[1743947082432,5.87686477,1764.2,1764.1,0.04891729]
[1743947083426,8.87286477,1764.2,1764.1,0.04891729]
[1743947083728,9.91244125,1764.2,1764.1,0.04891729]
[1743947085324,11.48494125,1764.2,1764.1,0.04891729]
[1743947085531,11.41407648,1764.2,1764.1,0.04891729]
[1743947086821,11.96407648,1764.2,1764.1,0.04891729]
[1743947088314,16.22777425,1764.2,1764.1,0.04891729]
[1743947088637,16.56243569,1764.2,1764.1,0.04891729]
[1743947089235,16.66243569,1764.2,1764.1,0.04891729]
[1743947090352,57.48443569,1764.2,1764.1,0.04891729]
[1743947091352,5.1483,1763.7,1763.1,0.05]
[1743947091525,3.0,1763.5,1763.1,0.05]
[1743947091725,0.07090494,1763.4,1763.1,0.05]
[1743947093058,3.07089511,1763.6,1763.2,1.593]
[1743947094073,0.07089511,1763.6,1763.2,1.593]
[1743947094250,3.0,1763.6,1763.2,5.56289]
[1743947094438,3.0,1763.6,1763.3,0.556289]
[1743947095158,0.07088288,1764.0,1763.5,1.6572]
[1743947095371,0.07088288,1764.0,1763.5,7.8172]
[1743947095528,3.07088288,1764.0,1763.5,7.8172]
[1743947098567,3.07088288,1764.0,1763.5,6.16]
[1743947098894,0.30708829,1763.9,1763.5,6.16]
[1743947099092,0.0708832,1763.8,1763.5,6.16]
[1743947100365,3.0,1763.6,1763.1,1.7072]
[1743947100566,0.07089358,1763.5,1763.1,1.7072]
[1743947100750,0.07089358,1763.5,1763.1,2.49392]
[1743947101158,0.07089358,1763.5,1763.1,1.7072]
[1743947102057,0.07089358,1763.5,1763.1,0.05]
[1743947102716,1.5123,1763.4,1763.1,0.05]
[1743947102921,3.0,1763.2,1763.1,0.05]
[1743947103223,3.0,1763.2,1762.1,1.7072]
[1743947103224,1.5123,1762.8,1762.1,1.7072]
[1743947103383,1.5123,1762.5,1762.1,0.05]
[1743947103717,0.07094735,1762.4,1762.1,0.05]
[1743947103917,5.799,1762.3,1762.1,0.05]
[1743947104085,0.65084854,1762.2,1762.1,0.05]
[1743947104417,3.07094854,1762.2,1762.1,0.05]
[1743947105985,0.07094854,1762.2,1762.1,0.05]
[1743947106936,0.07093967,1762.3,1762.1,0.05]
[1743947107221,0.07093959,1762.9,1762.2,6.16]
[1743947107420,0.07093959,1762.9,1762.6,1.6572]
[1743947108543,5.8,1763.0,1762.6,11.78845]
[1743947108946,5.8,1763.0,1762.6,11.78842]
[1743947109137,5.8,1763.3,1762.6,7.8172]
[1743947109341,0.6509055,1763.2,1762.6,8.996077]
[1743947109535,0.6509055,1763.2,1762.6,7.8172]
[1743947109741,3.6509055,1763.2,1762.6,7.8172]
[1743947109923,0.6509055,1763.2,1762.6,7.8172]
[1743947110123,0.0709055,1763.2,1762.8,1.5523]
[1743947110525,0.0709055,1763.2,1762.8,7.7123]
[1743947110726,5.8,1763.5,1763.1,5.52242]
[1743947111031,5.87089399,1763.6,1763.2,3.96999]
[1743947111235,0.07089399,1763.6,1763.2,10.12999]
[1743947111418,0.07089399,1763.6,1763.1,5.52242]
[1743947111419,0.07088545,1763.8,1763.4,3.96948]
[1743947111623,0.07088545,1763.8,1763.5,1.5523]
[1743947112127,0.07088545,1763.8,1763.5,5.52166]
[1743947112327,0.07087564,1763.9,1763.5,2.501414]
[1743947112544,0.07087564,1763.9,1763.5,1.5523]
[1743947112953,3.07087564,1763.9,1763.3,7.7123]
[1743947113327,1.6185,1763.8,1763.3,7.7123]
[1743947113522,0.07089093,1763.7,1763.3,7.7123]
[1743947113866,3.0,1763.5,1763.3,7.7123]
[1743947114025,3.07089092,1763.5,1763.3,1.5523]
[1743947114223,3.07089092,1763.5,1763.0,10.13039]
[1743947114438,3.07089092,1763.5,1763.0,7.733923]
[1743947114636,3.07089092,1763.5,1763.0,6.16]
[1743947115036,3.07089092,1763.5,1763.0,10.13033]
[1743947115453,3.07089092,1763.5,1763.0,6.16]
[1743947116228,0.07089092,1763.5,1763.1,3.97013]
[1743947116426,0.07089092,1763.5,1763.2,1.6383]
[1743947116861,3.07089092,1763.5,1763.2,1.6383]
[1743947117129,0.07089092,1763.5,1763.2,5.60825]
[1743947117354,0.07089092,1763.5,1763.2,2.596137]
[1743947117739,0.07089092,1763.5,1763.0,7.7983]
[1743947118173,3.07089092,1763.5,1763.0,7.7983]
[1743947119368,3.07089092,1763.5,1763.1,3.97021]
[1743947119774,0.07089092,1763.5,1763.0,11.76868]
[1743947119942,0.07089092,1763.5,1763.1,1.176868]
[1743947120142,0.07089092,1763.5,1763.1,5.147108]
[1743947120474,3.0,1763.6,1763.1,5.147108]
[1743947120834,0.07088887,1763.7,1763.3,5.60801]
[1743947121038,1.5556,1763.7,1763.2,6.16]
[1743947121245,0.07088768,1763.6,1763.2,6.16]
[1743947121545,0.07088768,1763.6,1762.9,7.7983]
[1743947121729,0.07088768,1763.6,1762.9,11.76902]
[1743947121936,0.07088768,1763.6,1762.9,9.952191]
[1743947123774,5.799,1763.5,1762.9,13.922881]
[1743947123932,0.0708969,1763.4,1762.9,13.922761]
[1743947124132,0.0708969,1763.4,1762.9,9.952191]
[1743947124574,1.6261,1763.3,1762.7,7.7179]
[1743947124781,1.6261,1763.1,1762.5,6.16]
[1743947124937,1.6261,1762.8,1762.2,6.16]
[1743947125282,0.07092829,1762.7,1762.2,6.16]
[1743947125450,5.799,1762.6,1762.2,6.16]
[1743947125783,1.6261,1762.4,1762.1,0.05]
[1743947125976,0.07094083,1762.3,1762.1,0.05]
[1743947126684,10.4251,1762.2,1762.1,0.05]
[1743947127018,11.54566015,1762.2,1762.1,0.05]
[1743947127186,11.47470408,1762.2,1762.1,0.05]
[1743947127336,15.44700408,1762.2,1762.1,0.05]
[1743947127759,12.02470408,1762.2,1762.1,0.05]
[1743947128962,4.6261,1762.2,1762.1,0.05]
[1743947129164,4.69705165,1762.2,1762.1,0.05]
[1743947129331,0.07095165,1762.2,1762.1,0.05]
[1743947129533,0.07094399,1762.3,1762.1,0.05]
[1743947130561,0.37803839,1762.3,1762.1,0.05]
[1743947131547,0.07094399,1762.3,1762.1,0.05]
[1743947132072,3.07094154,1762.4,1762.1,0.05]
[1743947132651,1.6374,1762.3,1762.1,0.05]
[1743947132845,0.07094956,1762.2,1762.1,0.05]
[1743947133245,0.07094955,1762.3,1762.1,0.05]
[1743947133488,3.0,1762.5,1762.1,1.5689]
[1743947133646,0.07093271,1762.4,1762.1,1.5689]
[1743947133846,5.8,1762.8,1762.1,1.5689]
[1743947134083,3.07092908,1762.7,1762.1,7.7289]
[1743947134287,3.07092908,1762.7,1762.2,3.97227]
[1743947134496,0.07092908,1762.7,1762.2,7.94442]
[1743947134684,0.07092908,1762.7,1762.3,10.926422]
[1743947134978,7.3226,1762.9,1762.3,10.926422]
[1743947134979,5.8,1762.9,1762.5,3.97159]
[1743947135196,3.07091572,1763.1,1762.5,10.13159]
[1743947135502,0.07091572,1763.1,1762.6,1.013159]
[1743947135784,3.07091572,1763.1,1762.5,6.16]
[1743947139160,1.5226,1763.0,1762.5,6.16]
[1743947139355,0.07092343,1762.9,1762.5,6.16]
[1743947140889,3.0,1762.7,1762.2,1.6285]
[1743947141082,0.07093154,1762.6,1762.1,6.21]
[1743947141392,0.37802469,1762.6,1762.1,0.05]
[1743947141690,1.5226,1762.5,1762.1,0.05]
[1743947141864,5.87194501,1762.4,1762.1,0.05]
[1743947143965,0.07094501,1762.4,1762.1,0.05]
[1743947144194,3.07094501,1762.4,1762.1,0.05]
[1743947144490,0.07093904,1762.9,1762.2,1.6478]
[1743947144666,1.6545,1762.8,1762.1,6.21]
[1743947144871,0.07093407,1762.7,1762.1,6.21]
[1743947145092,3.0,1762.5,1762.1,6.21]
[1743947145398,1.72543847,1762.4,1762.1,6.21]
[1743947145591,1.72306445,1762.4,1762.1,6.21]
[1743947145822,2.19537089,1762.4,1762.1,6.21]